bitfinex-derivatives/quotes_ETHF0:USTF0_20250909
["timestamp","ask_amount","ask_price","bid_price","bid_amount"]
[1757454577255,1.69844198,4303.0,4302.9,0.67298598]
[1757454577456,1.69844198,4303.0,4302.9,1.08808598]
[1757454578444,1.69844198,4303.0,4302.9,1.51898598]
[1757454579257,1.69844198,4303.0,4302.9,0.67298598]
[1757454579760,1.69844198,4303.0,4302.9,1.08808598]
[1757454581959,1.69844198,4303.0,4302.9,1.51898598]
[1757454582559,1.69844198,4303.0,4302.9,0.00348598]
[1757454582753,2.2609902,4303.0,4302.9,1.08808598]
[1757454587560,2.2609902,4303.0,4302.9,1.51898598]
[1757454588665,1.5822902,4303.0,4302.9,1.51898598]
[1757454589264,2.2195902,4303.0,4302.9,0.00348598]
[1757454589659,2.4631902,4303.0,4302.9,0.00348598]
[1757454590562,2.2195902,4303.0,4302.9,1.07218598]
[1757454593064,2.2195902,4303.0,4302.9,0.63848598]
[1757454597170,2.21951235,4303.0,4302.9,0.63848598]
[1757454598271,2.21951235,4303.0,4302.9,1.07218598]
[1757454599864,2.45251235,4303.0,4302.9,1.07218598]
[1757454600772,2.45251083,4303.0,4302.9,1.07218598]
[1757454603572,2.45248321,4303.0,4302.9,1.07218598]
[1757454607776,2.45248321,4303.0,4302.8,0.17662712]
[1757454607777,2.69608321,4303.0,4302.8,0.17662712]
[1757454608073,2.18268321,4302.9,4302.8,0.17662712]
[1757454608274,2.18268321,4302.9,4302.8,1.24532712]
[1757454614970,2.18268321,4302.9,4302.8,1.67812712]
[1757454615171,1.11788321,4302.9,4302.8,1.67812712]
[1757454617273,0.69278321,4302.9,4302.8,1.67812712]
[1757454617468,0.13023499,4302.9,4302.8,1.67812712]
[1757454617866,0.69192354,4302.9,4302.8,1.67812712]
[1757454621580,0.13023499,4302.9,4302.8,1.67812712]
[1757454623385,0.36323499,4302.9,4302.8,1.67812712]
[1757454623788,0.233,4302.9,4302.8,1.67812712]
[1757454623982,0.41248598,4303.3,4303.2,0.4266]
[1757454624188,1.33550101,4303.3,4303.2,1.4569]
[1757454624484,1.10250101,4303.3,4303.2,1.4569]
[1757454624678,1.33550101,4303.3,4303.2,1.4569]
[1757454624876,0.69350101,4303.3,4303.2,1.4569]
[1757454625075,0.36482002,4303.3,4303.2,1.4569]
[1757454626180,0.23648598,4303.3,4303.2,1.4569]
[1757454628984,0.00348598,4303.3,4303.2,1.4569]
[1757454629187,0.23648598,4303.3,4303.2,1.4569]
[1757454630284,0.23648598,4303.3,4303.2,5.4569]
[1757454630485,33.479,4303.6,4303.2,5.4569]
[1757454630688,33.479,4303.6,4303.5,1.7188]
[1757454630988,33.712,4303.6,4303.5,1.7188]
[1757454631784,33.479,4303.6,4303.5,1.7188]
[1757454632290,33.712,4303.6,4303.5,1.7188]
[1757454632990,33.712,4303.6,4303.5,5.7188]
[1757454635184,1.4542,4304.9,4304.8,1.4569]
[1757454635383,0.233,4304.9,4304.8,0.8561]
[1757454635583,33.477,4305.0,4304.9,0.6008]
[1757454635784,33.71,4305.0,4304.9,1.4569]
[1757454636286,34.119,4305.0,4304.9,1.4569]
[1757454636987,33.886,4305.0,4304.9,1.4569]
[1757454637291,33.71,4305.0,4304.9,1.4569]
[1757454639993,34.119,4305.0,4304.9,1.4569]
[1757454640892,35.1642,4305.0,4304.9,1.4569]
[1757454656504,1.6872,4305.0,4304.9,1.4569]
[1757454656694,0.409,4305.0,4304.9,1.4569]
[1757454657098,0.5934,4305.3,4304.9,1.4569]
[1757454657394,1.4143,4305.4,4305.3,1.4207]
[1757454657695,1.0539,4305.4,4305.3,1.4207]
[1757454658097,1.6473,4305.4,4305.3,1.4207]
[1757454659399,0.8209,4305.2,4304.5,1.92691776]
[1757454659704,1.4143,4304.6,4304.5,1.0959]
[1757454660201,1.4143,4304.6,4304.5,1.6826]
[1757454660698,1.4143,4304.6,4304.5,1.4207]
[1757454661105,1.4143,4304.6,4304.5,1.0004]
[1757454664209,1.4143,4304.6,4304.5,2.66541776]
[1757454665200,1.4143,4304.6,4304.5,1.0004]
[1757454667103,1.4143,4304.6,4304.5,0.5867]
[1757454667601,1.4143,4304.3,4304.2,3.08279896]
[1757454667906,1.4143,4304.3,4304.2,1.0004]
[1757454668611,1.4143,4304.3,4304.2,2.67208565]
[1757454677512,1.4143,4304.3,4304.2,3.09238565]
[1757454691133,1.4143,4304.3,4304.2,1.4207]
[1757454701447,1.4143,4304.3,4303.9,2.08239896]
[1757454701641,0.5884,4303.9,4303.5,1.67361316]
[1757454701846,1.405,4303.4,4303.3,1.67361316]
[1757454702248,0.5884,4303.3,4303.0,1.67361316]
[1757454702453,1.405,4303.1,4303.0,1.67361316]
[1757454703152,0.8166,4303.1,4302.9,1.67361316]
[1757454703446,1.405,4303.0,4302.9,2.69901316]
[1757454704152,1.405,4303.0,4302.9,1.0254]
[1757454707357,1.6362,4303.0,4302.8,0.17662712]
[1757454707958,1.6322,4302.9,4302.8,0.17662712]
[1757454720566,1.6322,4302.9,4302.8,0.76152712]
[1757454720969,1.6322,4302.9,4302.8,0.17662712]
[1757454721869,1.3992,4302.9,4302.8,1.54682712]
[1757454722170,1.6322,4302.9,4302.8,1.54682712]
[1757454723972,1.3992,4302.9,4302.8,1.54682712]
[1757454724170,0.4139,4303.3,4303.2,1.3702]
[1757454724363,33.468,4304.1,4303.8,1.3702]
[1757454724567,33.468,4304.1,4303.5,0.2381]
[1757454724568,33.468,4304.1,4304.0,1.6083]
[1757454728372,33.8819,4304.1,4304.0,1.6083]
[1757454728771,33.468,4304.1,4304.0,1.6083]
[1757454728970,33.701,4304.1,4304.0,1.6083]
[1757454729873,35.1002,4304.1,4304.0,1.6083]
[1757454733478,35.1002,4304.1,4304.0,1.3702]
[1757454740481,1.6322,4304.1,4304.0,1.3702]
[1757454741578,1.6322,4304.1,4304.0,0.964]
[1757454742174,1.6322,4304.1,4304.0,1.3636]
[1757454743781,1.3992,4304.1,4304.0,1.3636]
[1757454743978,1.6322,4304.1,4304.0,1.3636]
[1757454745984,0.3976,4304.1,4304.0,1.6158]
[1757454746177,1.2055,4304.1,4304.0,1.6158]
[1757454746483,1.5958,4304.1,4304.0,1.6158]
[1757454747076,1.5958,4304.1,4304.0,1.3751]
[1757454750176,1.3628,4304.1,4304.0,1.3751]
[1757454750487,1.3628,4304.1,4304.0,1.6158]
[1757454754281,1.3628,4304.1,4304.0,3.28941316]
[1757454756883,0.7879,4304.1,4304.0,3.28941316]
[1757454757084,0.3976,4304.1,4304.0,3.28941316]
[1757454757686,0.9725,4304.1,4304.0,3.28941316]
[1757454758687,0.5749,4304.9,4304.1,0.5964]
[1757454758892,1.3628,4304.6,4304.5,1.3733]
[1757454759085,2.05344024,4304.6,4304.5,1.3733]
[1757454761291,1.0267,4304.0,4303.8,1.67361316]
[1757454761495,0.7879,4303.8,4303.7,1.67361316]
[1757454761785,0.5749,4303.7,4303.6,1.67361316]
[1757454761992,1.6016,4303.5,4303.4,1.67361316]
[1757454762192,1.3628,4303.4,4303.3,1.67361316]
[1757454762493,1.3628,4303.4,4303.1,0.5964]
[1757454762494,0.7879,4303.4,4303.1,2.27001316]
[1757454762694,0.2388,4303.5,4303.1,2.27001316]
[1757454762895,1.3628,4303.2,4303.1,2.27001316]
[1757454763292,1.3628,4303.2,4303.1,0.5964]
[1757454763493,1.3628,4303.2,4303.0,1.67361316]
[1757454763694,1.3628,4303.1,4303.0,2.27001316]
[1757454763894,1.3628,4303.1,4303.0,0.5964]
[1757454764996,1.3628,4303.1,4302.8,1.85024028]
[1757454765196,1.3628,4303.0,4302.9,0.5964]
[1757454765604,1.6016,4303.0,4302.8,0.17662712]
[1757454773006,1.0267,4303.0,4302.8,0.73542712]
[1757454773207,1.3872,4302.9,4302.8,0.73542712]
[1757454774506,1.3872,4302.9,4302.8,1.11222712]
[1757454780212,1.3872,4302.9,4302.8,1.49012712]
[1757454789318,1.6202,4302.9,4302.8,1.49012712]
[1757454789717,1.6202,4302.9,4302.8,1.11222712]
[1757454790517,1.6202,4302.9,4302.8,1.49012712]
[1757454791618,1.6202,4302.9,4302.8,1.11222712]
[1757454791815,1.6202,4302.9,4302.8,0.17662712]
[1757454792221,1.6202,4302.9,4302.8,1.11222712]
[1757454794125,1.7499024,4302.9,4302.8,1.11222712]
[1757454796630,2.31131405,4302.9,4302.8,1.11222712]
[1757454802325,2.31131405,4302.9,4302.8,0.17662712]
[1757454802528,2.31131405,4302.9,4302.8,1.10022712]
[1757454803028,2.31131405,4302.9,4302.8,0.72042712]
[1757454808228,2.31131405,4302.9,4302.5,0.5438]
[1757454808434,1.3341,4302.6,4302.5,0.5438]
[1757454808635,1.5671,4302.6,4302.5,0.5438]
[1757454808835,1.5671,4302.6,4302.5,0.9236]
[1757454809529,1.5671,4302.6,4302.5,1.3069]
[1757454812528,1.5671,4302.6,4302.5,1.5386]
[1757454814830,0.5578,4303.4,4303.0,0.3798]
[1757454815135,0.9466,4303.1,4303.0,0.9948]
[1757454815330,2.02949261,4303.1,4303.0,0.7631]
[1757454815536,2.02949261,4303.1,4303.0,1.3069]
[1757454819234,2.26249261,4303.1,4303.0,1.3069]
[1757454819542,2.26249261,4303.1,4303.0,0.9236]
[1757454821742,0.215,4303.0,4302.6,0.5438]
[1757454821941,1.3341,4302.7,4302.6,0.9236]
[1757454822134,1.70066839,4302.7,4302.6,0.9236]
[1757454822534,1.70066839,4302.7,4302.6,1.3069]
[1757454825843,0.75536839,4302.7,4302.6,1.3069]
[1757454826241,1.31316839,4302.7,4302.6,1.3069]
[1757454827545,1.1796,4302.7,4302.6,1.3069]
[1757454827843,1.46656057,4302.7,4302.6,1.3069]
[1757454828238,1.3341,4302.7,4302.6,1.3069]
[1757454828438,1.5671,4302.7,4302.6,1.3069]
[1757454828652,1.69956149,4302.7,4302.6,1.3069]
[1757454834449,1.5671,4302.7,4302.6,1.3069]
[1757454834645,1.6995599,4302.7,4302.6,1.3069]
[1757454836052,0.1324599,4302.7,4302.6,1.3069]
[1757454836662,0.3886,4302.7,4302.6,0.7631]
[1757454837263,0.3886,4302.7,4302.6,1.3035]
[1757454838062,0.9254,4302.7,4302.6,1.3035]
[1757454840166,0.3886,4302.7,4302.6,1.3035]
[1757454840959,0.9254,4302.7,4302.6,1.3035]
[1757454843562,1.3037,4302.7,4302.6,1.3035]
[1757454845773,1.43615166,4302.7,4302.6,1.3035]
[1757454848473,1.43615208,4302.7,4302.6,1.3035]
[1757454859878,1.4361238,4302.7,4302.6,1.3035]
[1757454861576,1.4361238,4302.7,4302.6,0.9202]
[1757454863384,1.4361238,4302.7,4302.6,1.3031]
[1757454865879,1.4361238,4302.7,4302.6,0.8858]
[1757454866087,1.4361238,4302.7,4302.6,1.2687]
[1757454871391,1.4361238,4302.7,4302.6,0.5404]
[1757454871779,1.4361238,4302.7,4302.6,1.2687]
[1757454871985,0.8993238,4302.7,4302.6,1.2687]
[1757454872286,1.4273238,4302.7,4302.6,1.2687]
[1757454873691,1.4273238,4302.7,4302.3,0.5336]
[1757454873896,1.2949,4302.7,4302.3,0.5336]
[1757454874393,1.2949,4302.7,4302.6,0.3454]
[1757454874593,1.427207,4302.7,4302.6,0.879]
[1757454874889,1.427207,4302.7,4302.2,0.00348598]
[1757454875089,1.2949,4302.7,4302.6,0.3454]
[1757454875285,1.42720767,4302.7,4302.6,0.879]
[1757454877593,1.42720767,4302.7,4302.3,0.5336]
[1757454877897,1.2573,4302.3,4302.2,1.26538598]
[1757454880298,1.2573,4302.3,4302.2,0.88248598]
[1757454880599,1.9519666,4302.3,4302.2,0.00348598]
[1757454880798,1.9519666,4302.3,4301.6,0.5336]
[1757454880999,1.2573,4301.7,4301.6,0.879]
[1757454881299,1.4903,4301.7,4301.0,0.2317]
[1757454881499,1.4903,4301.7,4301.1,0.5336]
[1757454890405,1.4903,4301.7,4300.6,0.5106]
[1757454890602,0.3557,4300.8,4300.7,1.2509]
[1757454890905,1.2489,4300.8,4300.7,1.4834]
[1757454891303,1.2489,4300.8,4300.7,0.8787]
[1757454902816,1.2489,4300.8,4300.0,0.2256]
[1757454903020,1.2489,4300.8,4300.2,0.5106]
[1757454913822,1.2489,4300.8,4300.7,0.8787]
[1757454914021,1.4819,4300.8,4300.7,1.2509]
[1757454915224,1.4819,4300.8,4300.7,0.8787]
[1757454916726,1.2489,4300.8,4300.7,1.2509]
[1757454917023,0.5887,4300.8,4300.7,1.2509]
[1757454917819,0.5207,4301.0,4300.7,1.2509]
[1757454918025,0.233,4300.9,4300.8,0.5543]
[1757454918226,0.5207,4301.4,4300.8,0.7154]
[1757454918427,0.8969,4301.0,4300.9,1.2697]
[1757454920225,1.02753421,4301.0,4300.9,1.2697]
[1757454920725,1.37373421,4301.0,4300.9,1.2697]
[1757454924431,1.60673421,4301.0,4300.9,1.2697]
[1757454926534,2.03656447,4301.0,4300.9,1.2697]
[1757454926733,2.167341,4301.0,4300.9,1.2697]
[1757454932833,1.413641,4301.0,4300.9,1.2697]
[1757454933040,1.646641,4301.0,4300.9,1.2697]
[1757454933241,2.167341,4301.0,4300.9,1.2697]
[1757454934139,2.03656447,4301.0,4300.9,1.2697]
[1757454934345,2.16741513,4301.0,4300.9,1.2697]
[1757454935444,2.38421513,4301.0,4300.6,0.5543]
[1757454935645,0.85325066,4300.9,4300.8,0.3728]
[1757454935941,0.85325066,4300.9,4300.8,1.2697]
[1757454936143,1.08625066,4300.9,4300.8,1.2697]
[1757454936342,1.60695066,4300.9,4300.8,1.2697]
[1757454936549,1.37395066,4300.9,4300.8,1.2697]
[1757454936747,1.60695066,4300.9,4300.8,1.2697]
[1757454937746,1.4761,4300.9,4300.8,1.2697]
[1757454937947,0.9554,4300.9,4300.8,1.2697]
[1757454939048,0.7224,4300.9,4300.8,1.2697]
[1757454939251,0.9554,4300.9,4300.8,1.2697]
[1757454939850,0.6092,4300.9,4300.8,1.2697]
[1757454940452,0.3762,4300.9,4300.8,1.2697]
[1757454940652,0.6092,4300.9,4300.8,1.2697]
[1757454943553,0.233,4300.9,4300.8,1.2697]
[1757454948659,0.5368,4301.9,4300.8,0.7154]
[1757454948860,0.5368,4301.7,4301.1,0.5357]
[1757454949060,1.92517541,4301.6,4301.5,0.8831]
[1757454949255,1.38837541,4301.6,4301.5,1.4395]
[1757454949564,1.62137541,4301.6,4301.5,1.4395]
[1757454949960,0.92397541,4301.6,4301.5,1.4395]
[1757454951461,0.36364488,4301.6,4301.5,1.4395]
[1757454952859,0.13064488,4301.6,4301.5,1.4395]
[1757454953054,0.233,4301.7,4301.6,1.2351]
[1757454955472,1.4672,4301.7,4301.0,0.2044]
[1757454955666,1.4672,4301.7,4301.1,0.5357]
[1757454956675,1.2342,4301.2,4301.1,0.8831]
[1757454959971,1.2342,4301.2,4301.1,0.3474]
[1757454960173,1.2342,4301.2,4300.5,0.2181]
[1757454960372,0.8731,4300.7,4300.6,1.2351]
[1757454962379,1.2342,4300.7,4300.6,1.2351]
[1757454990183,0.2098,4301.5,4300.7,0.4989]
[1757454990492,0.8902,4300.8,4300.7,1.1821]
[1757454990691,1.08885551,4300.8,4300.7,1.1821]
[1757454993998,0.8902,4300.8,4300.7,1.1821]
[1757454995102,1.2494,4300.8,4300.7,1.1821]
[1757455001999,0.2098,4301.5,4301.3,1.1821]
[1757455002000,1.2494,4301.4,4301.3,1.1821]
[1757455002201,2.18772362,4301.4,4301.3,1.1821]
[1757455007506,1.95472362,4301.4,4301.3,1.1821]
[1757455007707,2.18772362,4301.4,4301.3,1.1821]
[1757455011802,1.95472362,4301.4,4301.3,1.1821]
[1757455012001,2.18772362,4301.4,4301.3,1.1821]
[1757455012710,1.95472362,4301.4,4301.3,1.1821]
[1757455012909,2.18772362,4301.4,4301.3,1.1821]
[1757455014611,1.95472362,4301.4,4301.3,1.1821]
[1757455014908,2.18772362,4301.4,4301.3,1.1821]
[1757455015310,2.18772362,4301.4,4300.6,0.5073]
[1757455015609,0.8358,4300.7,4300.6,1.2058]
[1757455015812,1.0688,4300.7,4300.6,1.2058]
[1757455016108,1.4039,4300.7,4300.6,1.2058]
[1757455021505,1.4039,4300.7,4300.6,0.3503]
[1757455022214,1.4039,4300.7,4300.1,0.5073]
[1757455022710,1.1709,4300.2,4300.1,0.8576]
[1757455025414,1.1709,4300.2,4299.6,0.5073]
[1757455025816,0.6816,4299.7,4299.6,0.8576]
[1757455026009,1.1709,4299.7,4299.6,0.8576]
[1757455029417,0.4893,4299.8,4299.1,0.5073]
[1757455029621,0.8358,4299.8,4299.7,1.2058]
[1757455029915,1.1709,4299.8,4299.7,1.2058]
[1757455031517,1.1709,4299.8,4299.0,0.2044]
[1757455031727,1.1709,4299.8,4299.1,0.5073]
[1757455034423,1.1709,4299.2,4299.1,0.8576]
[1757455034827,1.1709,4299.2,4299.1,1.2058]
[1757455040637,0.1949,4299.5,4299.1,1.2058]
[1757455040932,0.8125,4299.5,4299.4,0.6675]
[1757455041133,0.8125,4299.5,4299.4,1.14]
[1757455043031,1.1557,4299.5,4299.4,1.14]
[1757455045744,1.3587,4299.5,4299.4,1.14]
[1757455049740,1.1557,4299.5,4299.4,1.14]
[1757455051231,1.3887,4299.5,4299.4,1.14]
[1757455057944,1.1557,4299.5,4299.4,1.14]
[1757455058146,1.3887,4299.5,4299.4,1.14]
[1757455058643,0.8125,4299.5,4299.4,1.14]
[1757455058844,1.5917,4299.5,4299.4,1.14]
[1757455059934,1.1557,4299.9,4299.8,1.14]
[1757455060246,1.51868532,4299.9,4299.8,1.14]
[1757455068353,1.3887,4299.9,4299.8,1.14]
[1757455069154,1.1557,4299.9,4299.8,1.14]
[1757455069359,1.3887,4299.9,4299.8,1.14]
[1757455076559,1.1557,4299.9,4299.8,1.14]
[1757455076753,1.3887,4299.9,4299.8,1.14]
[1757455076952,0.4708,4300.4,4299.9,0.4801]
[1757455077151,1.0933,4300.4,4300.3,1.1148]
[1757455077355,1.0188,4300.4,4300.3,1.1148]
[1757455083452,1.3263,4300.4,4300.3,1.1148]
[1757455083658,1.3263,4300.4,4299.6,0.4801]
[1757455083960,0.7858,4299.7,4299.6,1.34736]
[1757455084159,0.7858,4299.7,4299.6,1.1148]
[1757455084362,0.7858,4299.7,4299.6,1.34738]
[1757455084863,0.7858,4299.7,4299.6,1.1148]
[1757455086058,1.0933,4299.7,4299.6,1.1148]
[1757455092267,0.7858,4299.7,4299.6,1.1148]
[1757455107587,1.1215,4299.7,4299.6,1.1148]
[1757455111184,0.1883,4300.5,4299.6,0.6347]
[1757455111483,0.4955,4300.3,4300.2,0.6183]
[1757455111683,0.8053,4300.3,4300.2,1.1018]
[1757455111884,1.141,4300.3,4300.2,1.1018]
[1757455114182,33.505,4300.9,4300.5,0.6183]
[1757455114183,0.8053,4300.6,4300.5,0.6183]
[1757455114387,0.49898598,4300.8,4300.5,1.2861]
[1757455114683,0.8053,4300.7,4300.6,1.1018]
[1757455115287,0.00348598,4300.8,4300.7,1.1018]
[1757455116185,0.00348598,4300.8,4300.7,5.1018]
[1757455116389,0.233,4301.6,4300.7,5.52496363]
[1757455116584,0.233,4301.6,4301.5,0.8026]
[1757455116785,0.233,4301.6,4301.5,1.2861]
[1757455117488,0.7285,4301.6,4301.5,1.2861]
[1757455118083,0.4955,4301.9,4301.8,1.1018]
[1757455118491,0.8053,4301.9,4301.8,1.1018]
[1757455119588,1.141,4301.9,4301.8,0.3102]
[1757455119790,1.141,4301.9,4301.0,0.1843]
[1757455119989,1.141,4301.9,4301.1,0.4835]
[1757455120494,1.374,4301.9,4301.1,0.4835]
[1757455128783,1.374,4301.9,4301.8,0.7639]
[1757455129994,1.374,4301.9,4301.8,0.2988]
[1757455130188,1.374,4301.9,4301.5,0.4651]
[1757455130389,1.374,4301.9,4301.1,0.4651]
[1757455131198,1.141,4301.9,4301.1,0.4651]
[1757455131498,1.1084,4301.7,4301.6,1.0707]
[1757455131790,0.4613,4301.7,4301.6,1.0707]
[1757455132094,0.6471,4302.5,4302.4,1.0707]
[1757455132399,0.8437,4303.0,4302.9,0.7639]
[1757455132588,1.538,4303.0,4302.9,0.7639]
[1757455133193,0.8311,4302.5,4302.4,0.4651]
[1757455133399,1.2924,4302.5,4302.1,0.4651]
[1757455134193,1.2924,4302.5,4301.6,0.4651]
[1757455140897,33.49,4303.7,4303.0,0.4651]
[1757455141099,0.3259,4303.5,4303.4,1.0707]
[1757455141703,0.7872,4303.9,4303.8,1.0707]
[1757455142201,1.1084,4303.9,4303.8,1.0707]
[1757455142895,0.6471,4303.2,4303.1,0.7639]
[1757455143095,1.1084,4303.2,4302.8,0.4651]
[1757455143291,1.1084,4303.2,4302.6,0.4651]
[1757455144196,1.1084,4303.2,4303.1,0.2988]
[1757455149906,1.1084,4303.2,4303.1,1.0707]
[1757455153908,0.184,4304.0,4303.1,0.6056]
[1757455154110,1.1084,4303.9,4303.8,1.0707]
[1757455154307,1.1084,4304.4,4304.3,0.3068]
[1757455154606,0.4613,4304.9,4304.4,0.4651]
[1757455154808,1.1084,4304.9,4304.8,1.0707]
[1757455157309,0.184,4305.5,4304.9,0.4526]
[1757455157606,1.0851,4305.0,4304.9,1.0714]
[1757455160117,1.2717,4305.0,4304.9,1.0714]
[1757455160406,1.2717,4305.0,4304.9,0.3137]
[1757455161010,1.2717,4305.0,4304.0,0.1929]
[1757455161011,1.2717,4305.0,4304.1,0.4526]
[1757455161205,0.1866,4305.0,4304.1,0.68492]
[1757455161513,0.7672,4304.2,4304.1,1.0714]
[1757455162013,0.7672,4304.2,4304.1,1.30373]
[1757455162412,0.1866,4305.0,4304.1,1.30373]
[1757455162608,0.7672,4304.3,4304.2,1.0714]
[1757455163513,1.0851,4304.3,4304.2,1.0714]
[1757455165406,1.0851,4304.3,4304.2,0.3137]
[1757455166607,1.0851,4304.3,4303.6,0.4526]
[1757455166812,1.0851,4303.7,4303.6,0.7663]
[1757455167115,1.0851,4303.1,4303.0,1.0714]
[1757455170618,1.0851,4302.8,4302.7,1.0714]
[1757455175317,1.0851,4302.8,4302.0,0.37075864]
[1757455175523,1.0851,4302.8,4302.1,0.4526]
[1757455176514,0.6462,4302.2,4302.1,0.7663]
[1757455176718,1.0851,4302.2,4302.1,0.7663]
[1757455176920,1.0851,4302.2,4302.1,0.3137]
[1757455182622,0.5149,4302.0,4301.9,0.7663]
[1757455182830,1.2717,4302.0,4301.9,0.7663]
[1757455184430,1.2717,4302.0,4301.9,1.0714]
[1757455184623,1.0851,4302.0,4301.9,1.0714]
[1757455184827,0.4389,4302.4,4302.3,0.6188]
[1757455185029,0.4389,4302.4,4302.3,1.0714]
[1757455185426,0.7672,4302.4,4302.3,1.0714]
[1757455187420,0.449,4302.9,4302.4,0.4332]
[1757455187625,0.7417,4302.9,4302.8,1.0488]
[1757455195728,0.449,4303.4,4302.9,0.4332]
[1757455196028,0.7417,4303.4,4303.3,1.0488]
[1757455196235,1.03,4303.4,4303.3,1.0488]
[1757455198223,0.449,4303.9,4303.3,0.6156]
[1757455198429,0.2927,4303.5,4303.4,1.0488]
[1757455198833,0.449,4303.7,4303.6,0.6156]
[1757455199133,0.7417,4303.7,4303.6,1.0488]
[1757455199631,0.1866,4304.5,4303.7,0.4332]
[1757455199632,0.449,4304.4,4303.7,0.4332]
[1757455199831,1.03,4304.4,4304.3,0.7382]
[1757455200430,1.03,4304.4,4304.3,0.305]
[1757455201926,1.03,4304.4,4304.1,0.4332]
[1757455202133,0.2927,4303.4,4303.3,1.0488]
[1757455202326,0.7417,4303.4,4303.3,1.0488]
[1757455202533,1.03,4303.4,4303.3,1.0488]
[1757455210433,1.03,4302.9,4302.8,2.08239896]
[1757455210630,0.581,4302.9,4302.5,0.4332]
[1757455210825,0.581,4302.6,4302.5,0.7382]
[1757455211131,1.03,4302.6,4302.5,1.0488]
[1757455215830,0.449,4303.4,4302.8,0.6156]
[1757455216028,0.1773,4304.0,4303.3,0.6156]
[1757455216237,1.2073,4304.0,4303.9,0.305]
[1757455216438,1.2073,4304.0,4303.9,0.7382]
[1757455217840,1.2073,4304.0,4303.9,1.0488]
[1757455220343,1.0298,4304.4,4304.3,0.2891]
[1757455220645,1.0298,4304.4,4304.3,0.712]
[1757455226858,1.0298,4304.4,4304.3,1.0222]
[1757455229263,0.4462,4304.4,4304.3,1.0222]
[1757455229562,0.7333,4304.4,4304.3,1.0222]
[1757455230264,0.234,4304.9,4304.3,1.0222]
[1757455230451,0.4462,4305.4,4304.8,0.5993]
[1757455230656,1.0298,4305.3,4305.2,0.2891]
[1757455230856,1.0298,4305.3,4305.2,0.712]
[1757455232162,1.0298,4305.3,4305.2,0.2891]
[1757455232965,1.0298,4305.3,4305.0,0.4229]
[1757455233463,1.0298,4305.3,4304.5,0.1813]
[1757455233464,1.0298,4305.3,4304.6,0.4229]
[1757455234061,1.0298,4305.3,4305.2,0.2891]
[1757455234265,1.0298,4305.3,4305.2,0.712]
[1757455235767,1.0298,4305.3,4305.2,1.0222]
[1757455236267,1.0298,4305.9,4305.8,0.712]
[1757455236567,1.0298,4305.9,4305.8,1.0222]
[1757455237563,34.0506,4306.4,4306.3,0.2891]
[1757455237768,1.0298,4306.4,4306.3,0.712]
[1757455243368,1.0298,4306.4,4306.3,0.2891]
[1757455243565,1.0298,4306.4,4306.0,0.4229]
[1757455245071,1.0298,4306.4,4305.5,0.1813]
[1757455245370,1.0298,4306.4,4305.6,0.4229]
[1757455247270,1.0298,4306.4,4306.3,0.2891]
[1757455247465,1.0298,4306.4,4306.3,1.0192]
[1757455249068,0.234,4307.2,4306.3,1.0192]
[1757455249270,0.4402,4306.9,4306.4,0.4525]
[1757455249474,1.0433,4306.9,4306.8,0.2892]
[1757455251168,1.0433,4306.9,4306.8,0.7417]
[1757455252867,1.0433,4306.9,4306.8,1.0193]
[1757455254675,1.0433,4306.9,4306.8,0.5668]
[1757455255172,1.0433,4306.9,4306.8,1.0193]
[1757455259673,0.7377,4306.9,4306.8,1.0193]
[1757455259880,1.0433,4306.9,4306.8,1.0193]
[1757455264368,1.2126,4307.5,4307.4,0.2892]
[1757455264573,1.0433,4307.5,4307.4,1.0193]
[1757455264979,0.6031,4307.9,4307.8,0.5668]
[1757455265281,1.0433,4307.9,4307.8,1.0193]
[1757455269384,1.0433,4308.4,4308.3,0.7417]
[1757455269783,1.0433,4308.4,4308.3,0.2892]
[1757455270383,1.0433,4308.4,4308.3,0.7417]
[1757455270583,1.0433,4308.4,4308.3,1.0193]
[1757455293101,0.7714,4308.0,4307.9,0.6857]
[1757455293401,1.1833,4308.0,4306.8,0.4116]
[1757455293601,0.9257,4306.9,4306.8,0.4116]
[1757455293902,0.69588178,4307.9,4306.0,3.06343424]
[1757455293903,0.9257,4306.3,4306.2,0.4116]
[1757455294110,0.5929,4306.1,4305.6,2.08239896]
[1757455294303,0.9257,4305.7,4305.6,0.6968]
[1757455294497,0.9257,4305.7,4305.6,0.4116]
[1757455295001,0.9257,4305.7,4305.1,0.4116]
[1757455295198,1.0607,4305.7,4305.2,0.6223]
[1757455295502,0.9257,4305.4,4305.3,0.6968]
[1757455297503,0.9257,4305.4,4305.2,0.6223]
[1757455297698,0.3328,4305.3,4305.2,0.6223]
[1757455297995,0.3328,4305.2,4305.1,0.4116]
[1757455298203,0.9257,4305.2,4305.1,0.6968]
[1757455299896,0.9257,4305.2,4304.6,0.4116]
[1757455300095,0.9257,4305.2,4304.0,0.1761]
[1757455300096,0.9257,4305.2,4304.1,0.4116]
[1757455300295,0.5929,4304.2,4304.1,0.6968]
[1757455300699,0.5929,4304.2,4304.1,0.9702]
[1757455301104,0.709,4305.3,4305.2,0.6968]
[1757455304399,0.1161,4305.3,4305.2,0.9702]
[1757455304606,0.4135,4305.3,4305.2,0.9702]
[1757455304797,0.709,4305.3,4305.2,0.9702]
[1757455305198,0.1161,4305.3,4305.2,0.9702]
[1757455307001,0.1161,4305.3,4305.2,4.9702]
[1757455308203,0.6966,4305.3,4305.2,0.9702]
[1757455308410,1.0193,4305.3,4305.2,0.9702]
[1757455309002,0.6966,4305.3,4305.2,0.9702]
[1757455310307,1.0193,4305.3,4305.2,0.9702]